fUSD/lending_fUSD_20260202
["ID","MTS","AMOUNT","RATE_DAILY","PERIOD"]
[404326284,1770061842353,-748.74,0.00013698,2]
[404326285,1770061842363,-748.74,0.00013698,2]
[404326286,1770061842372,-748.74,0.00013698,2]
[404326287,1770061842381,-500.0,0.00013698,2]
[404326288,1770061842390,-500.0,0.00013698,2]
[404326289,1770061842399,-500.0,0.00013698,2]
[404326290,1770061842571,-500.0,0.00013698,2]
[404326291,1770061842612,-500.0,0.00013698,2]
[404326292,1770061842623,-500.0,0.00013698,2]
[404326293,1770061842632,-500.0,0.00013698,2]
[404326294,1770061842648,-500.0,0.00013698,2]
[404326295,1770061842658,-500.0,0.00013698,2]
[404326296,1770061842669,-500.0,0.00013698,2]
[404326297,1770061842679,-500.0,0.00013698,2]
[404326298,1770061842690,-500.0,0.00013698,2]
[404326299,1770061842701,-500.0,0.00013698,2]
[404326300,1770061842710,-204.76668616,0.00013698,2]
[404326301,1770061842721,-520.9392261,0.00013698,2]
[404326302,1770061842731,-500.0,0.00013698,2]
[404326303,1770061842741,-500.0,0.00013698,2]
[404326304,1770061842752,-500.0,0.00013698,2]
[404326305,1770061842763,-500.0,0.00013698,2]
[404326306,1770061842773,-500.0,0.00013698,2]
[404326307,1770061842783,-500.0,0.00013698,2]
[404326308,1770061842792,-500.0,0.00013698,2]
[404326309,1770061842804,-500.0,0.00013698,2]
[404326310,1770061842814,-556.64650747,0.00013698,2]
[404326311,1770061842823,-500.0,0.00013698,2]
[404326312,1770061842833,-500.0,0.00013698,2]
[404326313,1770061842843,-500.0,0.00013698,2]
[404326314,1770061842853,-469.64985738,0.00013698,2]
[404326315,1770061842863,-1332.26,0.00013698,2]
[404326316,1770061842873,-1332.26,0.00013698,2]
[404326317,1770061842882,-1332.26,0.00013698,2]
[404326318,1770061842892,-1332.26,0.00013698,2]
[404326319,1770061842902,-1332.26,0.00013698,2]
[404326320,1770061842913,-1332.26,0.00013698,2]
[404326321,1770061842923,-1332.26,0.00013698,2]
[404326322,1770061842932,-1332.26,0.00013698,2]
[404326323,1770061842942,-1332.26,0.00013698,2]
[404326324,1770061842951,-1332.26,0.00013698,2]
[404326325,1770061842960,-1332.26,0.00013698,2]
[404326326,1770061842970,-1332.26,0.00013698,2]
[404326327,1770061842979,-1332.26,0.00013698,2]
[404326328,1770061842989,-1332.26,0.00013698,2]
[404326329,1770061842999,-1332.26,0.00013698,2]
[404326330,1770061843009,-1332.26,0.00013698,2]
[404326331,1770061843019,-1332.26,0.00013698,2]
[404326332,1770061843030,-1332.26,0.00013698,2]
[404326333,1770061843040,-1332.26,0.00013698,2]
[404326334,1770061843050,-500.0,0.00013698,2]
[404326335,1770061843059,-500.0,0.00013698,2]
[404326336,1770061843068,-312.15594151,0.00013698,2]
[404326337,1770061843079,-500.0,0.00013698,2]
[404326338,1770061843088,-500.0,0.00013698,2]
[404326340,1770061843097,-500.0,0.00013698,2]
[404326342,1770061843107,-500.0,0.00013698,2]
[404326344,1770061843116,-500.0,0.00013698,2]
[404326346,1770061843126,-500.0,0.00013698,2]
[404326349,1770061843135,-500.0,0.00013698,2]
[404326351,1770061843145,-500.0,0.00013698,2]
[404326353,1770061843155,-500.0,0.00013698,2]
[404326356,1770061843164,-500.0,0.00013698,2]
[404326358,1770061843173,-500.0,0.00013698,2]
[404326360,1770061843183,-630.82371033,0.00013698,2]
[404326362,1770061843192,-605.88,0.00013698,2]
[404326364,1770061843202,-605.88,0.00013698,2]
[404326366,1770061843211,-605.88,0.00013698,2]
[404326367,1770061843220,-605.88,0.00013698,2]
[404326369,1770061843229,-605.88,0.00013698,2]
[404326371,1770061843238,-605.88,0.00013698,2]
[404326372,1770061843247,-605.88,0.00013698,2]
[404326373,1770061843256,-605.88,0.00013698,2]
[404326374,1770061843266,-605.88,0.00013698,2]
[404326375,1770061843275,-605.88,0.00013698,2]
[404326376,1770061843286,-605.88,0.00013698,2]
[404326377,1770061843296,-605.88,0.00013698,2]
[404326378,1770061843306,-605.88,0.00013698,2]
[404326379,1770061843315,-605.88,0.00013698,2]
[404326380,1770061843325,-605.88,0.00013698,2]
[404326381,1770061843334,-605.88,0.00013698,2]
[404326382,1770061843343,-605.88,0.00013698,2]
[404326383,1770061843352,-605.88,0.00013698,2]
[404326384,1770061843362,-500.0,0.00013698,2]
[404326385,1770061843371,-500.0,0.00013698,2]
[404326386,1770061843380,-500.0,0.00013698,2]
[404326387,1770061843390,-500.0,0.00013698,2]
[404326388,1770061843399,-500.0,0.00013698,2]
[404326389,1770061843409,-500.0,0.00013698,2]
[404326390,1770061843420,-500.0,0.00013698,2]
[404326391,1770061843431,-507.90611429,0.00013698,2]
[404326392,1770061843443,-521.7,0.00013698,2]
[404326393,1770061843452,-521.7,0.00013698,2]
[404326394,1770061843463,-521.7,0.00013698,2]
[404326395,1770061843472,-521.7,0.00013698,2]
[404326396,1770061843482,-521.7,0.00013698,2]
[404326397,1770061843491,-521.7,0.00013698,2]
[404326398,1770061843500,-521.7,0.00013698,2]
[404326399,1770061843509,-521.7,0.00013698,2]
[404326400,1770061843518,-521.7,0.00013698,2]
[404326401,1770061843528,-521.7,0.00013698,2]
[404326402,1770061843538,-521.7,0.00013698,2]
[404326403,1770061843549,-521.7,0.00013698,2]
[404326404,1770061843559,-521.7,0.00013698,2]
[404326405,1770061843569,-521.7,0.00013698,2]
[404326406,1770061843580,-521.7,0.00013698,2]
[404326407,1770061843589,-521.7,0.00013698,2]
[404326408,1770061843598,-500.0,0.00013698,2]
[404326409,1770061843609,-521.7,0.00013698,2]
[404326410,1770061843619,-500.0,0.00013698,2]
[404326411,1770061843628,-521.7,0.00013698,2]
[404326412,1770061843638,-285.04848986,0.00013698,2]
[404326413,1770061843648,-521.7,0.00013698,2]
[404326414,1770061843657,-521.7,0.00013698,2]
[404326415,1770061843667,-521.7,0.00013698,2]
[404326416,1770061843677,-521.7,0.00013698,2]
[404326417,1770061843686,-521.7,0.00013698,2]
[404326418,1770061843695,-521.88046437,0.00013698,2]
[404326419,1770061843704,-500.0,0.00013698,2]
[404326420,1770061843714,-500.0,0.00013698,2]
[404326421,1770061843723,-500.0,0.00013698,2]
[404326422,1770061843732,-500.0,0.00013698,2]
[404326423,1770061843741,-500.0,0.00013698,2]
[404326424,1770061843751,-500.0,0.00013698,2]
[404326425,1770061843761,-500.0,0.00013698,2]
[404326426,1770061843771,-500.0,0.00013698,2]
[404326427,1770061843783,-500.0,0.00013698,2]
[404326428,1770061843793,-500.0,0.00013698,2]
[404326429,1770061843803,-500.0,0.00013698,2]
[404326430,1770061843812,-500.0,0.00013698,2]
[404326431,1770061843822,-500.0,0.00013698,2]
[404326432,1770061843832,-500.0,0.00013698,2]
[404326433,1770061843841,-500.0,0.00013698,2]
[404326434,1770061843850,-500.0,0.00013698,2]
[404326435,1770061843860,-500.0,0.00013698,2]
[404326436,1770061843869,-317.29293236,0.00013698,2]
[404326437,1770061843878,-565.72,0.00013698,2]
[404326438,1770061843887,-565.72,0.00013698,2]
[404326439,1770061843896,-565.72,0.00013698,2]
[404326440,1770061843905,-565.72,0.00013698,2]
[404326441,1770061843915,-565.72,0.00013698,2]
[404326442,1770061843924,-565.72,0.00013698,2]
[404326443,1770061843933,-565.72,0.00013698,2]
[404326444,1770061843942,-565.72,0.00013698,2]
[404326445,1770061843951,-565.72,0.00013698,2]
[404326446,1770061843960,-565.72,0.00013698,2]
[404326447,1770061843969,-565.72,0.00013698,2]
[404326448,1770061843978,-565.72,0.00013698,2]
[404326449,1770061843987,-565.72,0.00013698,2]
[404326450,1770061843996,-565.72,0.00013698,2]
[404326451,1770061844006,-565.72,0.00013698,2]
[404326452,1770061844015,-565.72,0.00013698,2]
[404326453,1770061844024,-565.72,0.00013698,2]
[404326454,1770061844033,-565.72,0.00013698,2]
[404326455,1770061844042,-565.72,0.00013698,2]
[404326456,1770061844052,-565.72,0.00013698,2]
[404326457,1770061844061,-565.72,0.00013698,2]
[404326458,1770061844072,-565.72,0.00013698,2]
[404326459,1770061844081,-565.72,0.00013698,2]
[404326460,1770061844092,-565.85807212,0.00013698,2]
[404326461,1770061844102,-1062.7,0.00013698,2]
[404326462,1770061844113,-1062.7,0.00013698,2]
[404326463,1770061844123,-1062.7,0.00013698,2]
[404326464,1770061844132,-1062.7,0.00013698,2]
[404326465,1770061844143,-1062.7,0.00013698,2]
[404326466,1770061844154,-1062.7,0.00013698,2]
[404326467,1770061844164,-1062.7,0.00013698,2]
[404326468,1770061844173,-1062.7,0.00013698,2]
[404326469,1770061844183,-1062.7,0.00013698,2]
[404326470,1770061844192,-1062.7,0.00013698,2]
[404326471,1770061844202,-1062.7,0.00013698,2]
[404326472,1770061844211,-1062.7,0.00013698,2]
[404326473,1770061844221,-1062.7,0.00013698,2]
[404326474,1770061844230,-1062.7,0.00013698,2]
[404326475,1770061844239,-1062.7,0.00013698,2]
[404326476,1770061844249,-1062.7,0.00013698,2]
[404326477,1770061844260,-1062.7,0.00013698,2]
[404326478,1770061844270,-1062.7,0.00013698,2]
[404326479,1770061844280,-1062.7,0.00013698,2]
[404326480,1770061844290,-535.53919898,0.00013698,2]
[404326481,1770061844299,-500.0,0.00013698,2]
[404326482,1770061844309,-500.0,0.00013698,2]
[404326483,1770061844318,-500.0,0.00013698,2]
[404326484,1770061844327,-500.0,0.00013698,2]
[404326485,1770061844336,-500.0,0.00013698,2]
[404326486,1770061844345,-500.0,0.00013698,2]
[404326487,1770061844355,-500.0,0.00013698,2]
[404326488,1770061844364,-500.0,0.00013698,2]
[404326489,1770061844373,-560.54945219,0.00013698,2]
[404326490,1770061844382,-500.0,0.00013698,2]
[404326491,1770061844391,-500.0,0.00013698,2]
[404326492,1770061844400,-500.0,0.00013698,2]
[404326493,1770061844409,-500.0,0.00013698,2]
[404326494,1770061844418,-500.0,0.00013698,2]
[404326495,1770061844427,-500.0,0.00013698,2]
[404326496,1770061844436,-500.0,0.00013698,2]
[404326497,1770061844445,-500.0,0.00013698,2]
[404326498,1770061844455,-500.0,0.00013698,2]
[404326499,1770061844464,-500.0,0.00013698,2]
[404326500,1770061844473,-500.0,0.00013698,2]
[404326501,1770061844482,-500.0,0.00013698,2]
[404326502,1770061844491,-500.0,0.00013698,2]
[404326503,1770061844500,-500.0,0.00013698,2]
[404326504,1770061844509,-500.0,0.00013698,2]
[404326505,1770061844518,-500.0,0.00013698,2]
[404326506,1770061844527,-500.0,0.00013698,2]
[404326507,1770061844536,-500.0,0.00013698,2]
[404326508,1770061844546,-500.0,0.00013698,2]
[404326509,1770061844555,-561.99539873,0.00013698,2]
[404326510,1770061844565,-500.0,0.00013698,2]
[404326511,1770061844578,-500.0,0.00013698,2]
[404326512,1770061844587,-500.0,0.00013698,2]
[404326513,1770061844596,-500.0,0.00013698,2]
[404326514,1770061844606,-500.0,0.00013698,2]
[404326515,1770061844615,-500.0,0.00013698,2]
[404326516,1770061844625,-500.0,0.00013698,2]
[404326517,1770061844634,-500.0,0.00013698,2]
[404326518,1770061844644,-500.0,0.00013698,2]
[404326519,1770061844653,-330.26941115,0.00013698,2]
[404326520,1770061844663,-226.64,0.00013699,2]
[404326521,1770061844672,-748.74,0.00013699,2]
[404326522,1770061844682,-748.74,0.00013699,2]
[404326523,1770061844691,-748.74,0.00013699,2]
[404326524,1770061844700,-748.74,0.00013699,2]
[404326525,1770061844710,-748.75883379,0.00013699,2]
[404326526,1770061844719,-1332.26,0.00013699,2]
[404326527,1770061844728,-1332.26,0.00013699,2]
[404326528,1770061844738,-1332.26,0.00013699,2]
[404326529,1770061844747,-1332.26,0.00013699,2]
[404326530,1770061844759,-1332.41686126,0.00013699,2]
[404326531,1770061844768,-1062.7,0.00013699,2]
[404326532,1770061844778,-1062.7,0.00013699,2]
[404326533,1770061844787,-1062.7,0.00013699,2]
[404326534,1770061844797,-1062.7,0.00013699,2]
[404326535,1770061844806,-1062.82994886,0.00013699,2]
[404326536,1770061844816,-4118.55,0.000137,2]
[404326537,1770061844826,-4118.55,0.000137,2]
[404326538,1770061844837,-4118.55,0.000137,2]
[404326539,1770061844846,-4118.55,0.000137,2]
[404326540,1770061844855,-4118.55,0.000137,2]
[404326541,1770061844866,-458.51,0.00013703,2]
[404326542,1770061844875,-500.0,0.00013844,2]
[404326543,1770061844884,-297.12,0.00013898,2]
[404326544,1770061844894,-400.0,0.000139,5]
[404326545,1770061844904,-408.03827789,0.00013911,2]
[404326546,1770061844915,-63921.28069494,0.00013921,2]
[404326547,1770061844924,-1235.79,0.00013954,2]
[404326548,1770061844934,-639.93,0.00013954,2]
[404326549,1770061844945,-642.09,0.00013954,2]
[404326550,1770061845011,-605.88,0.00013954,2]
[404326551,1770061845021,-596.97,0.00013972,2]
[404326552,1770061845029,-596.97,0.00013972,2]
[404326553,1770061845039,-596.97,0.00013972,2]
[404326554,1770061845049,-596.97,0.00013972,2]
[404326555,1770061845059,-597.07967228,0.00013972,2]
[404326556,1770061845070,-168.13382401,0.00013973,2]
[404326557,1770061845080,-500.0,0.00013973,2]
[404326558,1770061845090,-500.0,0.00013973,2]
[404326559,1770061845100,-500.0,0.00013973,2]
[404326560,1770061845110,-164.70227396,0.00013973,2]
[404326561,1770061845119,-500.0,0.00013973,2]
[404326562,1770061845130,-500.0,0.00013973,2]
[404326563,1770061845140,-541.62569807,0.00013973,2]
[404326564,1770061845149,-500.0,0.00013973,2]
[404326565,1770061845159,-569.16951839,0.00013973,2]
[404326568,1770061845170,-500.0,0.00013973,2]
[404326569,1770061845179,-500.0,0.00013973,2]
[404326571,1770061845188,-500.0,0.00013973,2]
[404326573,1770061845198,-500.0,0.00013973,2]
[404326576,1770061845207,-500.0,0.00013973,2]
[404326577,1770061845217,-170.36367963,0.00013973,2]
[404326578,1770061845226,-500.0,0.00013973,2]
[404326579,1770061845235,-500.0,0.00013973,2]
[404326580,1770061845244,-500.0,0.00013973,2]
[404326582,1770061845253,-500.0,0.00013973,2]
[404326584,1770061845263,-500.0,0.00013973,2]
[404326586,1770061845272,-163.07853281,0.00013973,2]
[404326588,1770061845282,-500.0,0.00013973,2]
[404326589,1770061845291,-500.0,0.00013973,2]
[404326591,1770061845300,-500.0,0.00013973,2]
[404326593,1770061845310,-500.0,0.00013973,2]
[404326595,1770061845320,-490.75391952,0.00013973,2]
[404326596,1770061845332,-500.0,0.00013973,2]
[404326597,1770061845342,-500.0,0.00013973,2]
[404326598,1770061845353,-500.0,0.00013973,2]
[404326600,1770061845363,-500.0,0.00013973,2]
[404326601,1770061845373,-500.0,0.00013973,2]
[404326602,1770061845383,-460.07091613,0.00013973,2]
[404326603,1770061845392,-500.0,0.00013973,2]
[404326604,1770061845402,-163.90719075,0.00013973,2]
[404326605,1770061845412,-259.40505883,0.00013973,2]
[404326607,1770061845422,-500.0,0.00013973,2]
[404326609,1770061845433,-500.0,0.00013973,2]
[404326611,1770061845443,-500.0,0.00013973,2]
[404326613,1770061845453,-500.0,0.00013973,2]
[404326615,1770061845463,-500.12230816,0.00013973,2]
[404326617,1770061845475,-458.51,0.00013977,2]
[404326619,1770061845485,-500.0,0.00014113,2]
[404326621,1770061845495,-500.0,0.00014118,2]
[404326623,1770061845505,-8759.33,0.00014235,2]
[404326625,1770061845516,-458.51,0.00014251,2]
[404326627,1770061845525,-736.0,0.00014255,2]
[404326628,1770061845535,-868.9,0.00014273,2]
[404326630,1770061845544,-250.0,0.00014302,2]
[404326631,1770061845553,-390.05095174,0.00014316,2]
[404326632,1770061845563,-773.23,0.00014327,2]
[404326633,1770061845572,-1206.12316472,0.00014382,2]
[404326634,1770061845585,-921.27732344,0.00014382,2]
[404326635,1770061845594,-500.0,0.00014392,2]
[404326636,1770061845603,-3292.0,0.00014407,2]
[404326637,1770061845613,-63921.28069494,0.00014453,2]
[404326638,1770061845623,-1000.0,0.00014521,2]
[404326639,1770061845632,-1000.0,0.00014521,2]
[404326640,1770061845641,-545.34481126,0.00014521,2]
[404326641,1770061845650,-543.53042842,0.00014521,2]
[404326642,1770061845661,-723.77841226,0.00014521,2]
[404326643,1770061845670,-1000.0,0.00014521,2]
[404326644,1770061845680,-1000.0,0.00014521,2]
[404326645,1770061845689,-1000.0,0.00014521,2]
[404326646,1770061845698,-1000.0,0.00014521,2]
[404326647,1770061845707,-503.87544057,0.00014521,2]
[404326648,1770061845717,-1000.0,0.00014521,2]
[404326649,1770061845726,-1000.0,0.00014521,2]
[404326650,1770061845736,-652.81544497,0.00014521,2]
[404326651,1770061845745,-1000.0,0.00014521,2]
[404326652,1770061845755,-1000.0,0.00014521,2]
[404326653,1770061845765,-1000.0,0.00014521,2]
[404326654,1770061845775,-156.95111861,0.00014521,2]
[404326655,1770061845784,-1000.0,0.00014521,2]
[404326656,1770061845794,-1002.28291878,0.00014521,2]
[404326657,1770061845803,-1001.69360348,0.00014521,2]
[404326658,1770061845813,-1000.0,0.00014521,2]
[404326659,1770061845822,-1000.0,0.00014521,2]
[404326660,1770061845832,-181.57502123,0.00014521,2]
[404326661,1770061845842,-1000.0,0.00014521,2]
[404326662,1770061845851,-911.8365552,0.00014521,2]
[404326663,1770061845860,-1000.0,0.00014521,2]
[404326664,1770061845870,-1046.2635897,0.00014521,2]
[404326665,1770061845879,-458.51,0.00014525,2]
[404326666,1770061845888,-868.9,0.00014547,2]
[404326667,1770061845898,-525.72,0.00014567,2]
[404326668,1770061845907,-773.23,0.00014601,2]
[404326669,1770061845916,-297.12,0.0001463,2]
[404326670,1770061845926,-500.0,0.00014661,2]
[404326671,1770061845935,-500.0,0.00014666,2]
[404326672,1770061845946,-1235.79,0.00014679,2]
[404326673,1770061845955,-1235.79,0.00014679,2]
[404326674,1770061845965,-1235.79,0.00014679,2]
[404326675,1770061845974,-1235.79,0.00014679,2]
[404326676,1770061845984,-1235.97856515,0.00014679,2]
[404326677,1770061845993,-639.93,0.00014679,2]
[404326678,1770061846003,-639.93,0.00014679,2]
[404326679,1770061846011,-639.93,0.00014679,2]
[404326680,1770061846020,-639.93,0.00014679,2]
[404326681,1770061846029,-640.02279054,0.00014679,2]
[404326682,1770061846038,-642.09,0.00014679,2]
[404326683,1770061846048,-642.09,0.00014679,2]
[404326684,1770061846057,-642.09,0.00014679,2]
[404326685,1770061846067,-642.09,0.00014679,2]
[404326686,1770061846076,-642.24920592,0.00014679,2]
[404326687,1770061846086,-605.88,0.00014679,2]
[404326688,1770061846095,-605.88,0.00014679,2]
[404326689,1770061846104,-605.88,0.00014679,2]
[404326690,1770061846114,-605.88,0.00014679,2]
[404326691,1770061846123,-606.04317558,0.00014679,2]
[404326692,1770061846134,-181.63,0.00014744,2]
[404326693,1770061846144,-458.51,0.00014799,2]
[404326694,1770061846155,-868.9,0.00014821,2]
[404326695,1770061846166,-773.23,0.00014875,2]
[404326696,1770061846175,-179.5507367,0.000149,2]
[404326697,1770061846184,-250.20103246,0.0001494,2]
[404326698,1770061846194,-63921.28069494,0.00014984,2]
[404326699,1770061846205,-250.0,0.00015,2]
[404326700,1770061846216,-2377.0,0.00015,5]
[404326701,1770061846226,-1506.79391477,0.00015068,2]
[404326702,1770061846236,-1500.0,0.00015068,2]
[404326703,1770061846245,-1082.73923754,0.00015068,2]
[404326704,1770061846254,-1500.0,0.00015068,2]
[404326705,1770061846264,-1500.0,0.00015068,2]
[404326706,1770061846273,-1118.48848408,0.00015068,2]
[404326707,1770061846283,-1500.0,0.00015068,2]
[404326708,1770061846293,-1500.0,0.00015068,2]
[404326709,1770061846304,-1023.62775042,0.00015068,2]
[404326710,1770061846314,-550.7159852,0.00015068,2]
[404326711,1770061846325,-1500.0,0.00015068,2]
[404326712,1770061846334,-1500.0,0.00015068,2]
[404326713,1770061846345,-1500.0,0.00015068,2]
[404326714,1770061846357,-1500.0,0.00015068,2]
[404326715,1770061846368,-1500.0,0.00015068,2]
[404326716,1770061846378,-1500.0,0.00015068,2]
[404326717,1770061846390,-900.0,0.00015068,2]
[404326718,1770061846399,-458.51,0.00015073,2]
[404326719,1770061846409,-988.5,0.00015095,2]
[404326720,1770061846419,-773.23,0.00015149,2]
[404326721,1770061846430,-500.0,0.00015205,2]
[404326722,1770061846439,-500.0,0.00015209,2]
[404326723,1770061846448,-458.51,0.00015347,2]
[404326724,1770061846459,-297.12,0.00015361,2]
[404326725,1770061846468,-500.63586771,0.00015473,2]
[404326726,1770061846479,-163.34993731,0.00015473,2]
[404326727,1770061846489,-163.12661798,0.00015473,2]
[404326728,1770061846498,-500.46237197,0.00015473,2]
[404326729,1770061846507,-500.0,0.00015473,2]
[404326730,1770061846516,-500.0,0.00015473,2]
[404326731,1770061846525,-500.0,0.00015473,2]
[404326732,1770061846534,-500.0,0.00015473,2]
[404326733,1770061846543,-500.0,0.00015473,2]
[404326734,1770061846553,-500.0,0.00015473,2]
[404326735,1770061846565,-500.0,0.00015473,2]
[404326736,1770061846574,-500.0,0.00015473,2]
[404326737,1770061846588,-336.43827265,0.00015473,2]
[404326738,1770061846597,-500.0,0.00015473,2]
[404326739,1770061846606,-500.0,0.00015473,2]
[404326740,1770061846616,-500.0,0.00015473,2]
[404326741,1770061846626,-500.0,0.00015473,2]
[404326742,1770061846635,-500.0,0.00015473,2]
[404326743,1770061846645,-500.0,0.00015473,2]
[404326744,1770061846654,-574.06272579,0.00015473,2]
[404326745,1770061846663,-500.0,0.00015473,2]
[404326746,1770061846673,-522.30858015,0.00015473,2]
[404326747,1770061846682,-500.0,0.00015473,2]
[404326748,1770061846692,-163.46067997,0.00015473,2]
[404326749,1770061846701,-161.45537985,0.00015473,2]
[404326750,1770061846711,-500.0,0.00015473,2]
[404326751,1770061846720,-500.62768041,0.00015473,2]
[404326752,1770061846729,-500.6120606,0.00015473,2]
[404326753,1770061846739,-500.0,0.00015473,2]
[404326754,1770061846748,-500.0,0.00015473,2]
[404326755,1770061846758,-500.0,0.00015473,2]
[404326756,1770061846767,-160.61738464,0.00015473,2]
[404326757,1770061846777,-500.41005015,0.00015473,2]
[404326758,1770061846786,-500.0,0.00015473,2]
[404326759,1770061846796,-500.0,0.00015473,2]
[404326760,1770061846805,-500.0,0.00015473,2]
[404326761,1770061846815,-500.0,0.00015473,2]
[404326762,1770061846825,-500.0,0.00015473,2]
[404326763,1770061846834,-500.0,0.00015473,2]
[404326764,1770061846844,-151.07783782,0.00015473,2]
[404326765,1770061846853,-500.40906893,0.00015473,2]
[404326766,1770061846864,-500.0,0.00015473,2]
[404326767,1770061846875,-464.35211832,0.00015473,2]
[404326768,1770061846886,-160.54295648,0.00015473,2]
[404326769,1770061846895,-500.0,0.00015473,2]
[404326770,1770061846904,-500.0,0.00015473,2]
[404326771,1770061846913,-500.0,0.00015473,2]
[404326772,1770061846922,-500.0,0.00015473,2]
[404326773,1770061846931,-559.67308476,0.00015473,2]
[404326774,1770061846944,-500.0,0.00015473,2]
[404326775,1770061846954,-500.0,0.00015473,2]
[404326776,1770061846963,-512.94754167,0.00015473,2]
[404326777,1770061846972,-500.0,0.00015473,2]
[404326778,1770061846982,-500.0,0.00015473,2]
[404326779,1770061846992,-500.0,0.00015473,2]
[404326780,1770061847002,-500.0,0.00015473,2]
[404326781,1770061847012,-500.0,0.00015473,2]
[404326782,1770061847023,-500.0,0.00015473,2]
[404326783,1770061847035,-500.0,0.00015473,2]
[404326784,1770061847047,-500.0,0.00015473,2]
[404326785,1770061847057,-200.70028911,0.00015473,2]
[404326786,1770061847067,-160.21125151,0.00015473,2]
[404326787,1770061847077,-340.09137446,0.00015473,2]
[404326788,1770061847089,-500.0,0.00015473,2]
[404326789,1770061847099,-500.0,0.00015473,2]
[404326790,1770061847111,-500.0,0.00015473,2]
[404326791,1770061847121,-593.37800921,0.00015473,2]
[404326792,1770061847132,-185.46503654,0.00015473,2]
[404326793,1770061847141,-500.0,0.00015473,2]
[404326794,1770061847151,-500.0,0.00015473,2]
[404326795,1770061847162,-500.0,0.00015473,2]
[404326796,1770061847172,-500.0,0.00015473,2]
[404326797,1770061847182,-360.21,0.00015485,2]
[404326798,1770061847192,-181.60743456,0.00015509,2]
[404326799,1770061847203,-63921.28069494,0.00015516,2]
[404326800,1770061847212,-174.61919141,0.00015523,2]
[404326801,1770061847223,-209.40437684,0.00015523,2]
[404326802,1770061847233,-500.0,0.00015523,2]
[404326803,1770061847243,-721.12765535,0.00015523,2]
[404326804,1770061847253,-500.0,0.00015523,2]
[404326805,1770061847263,-500.0,0.00015523,2]
[404326806,1770061847273,-500.0,0.00015523,2]
[404326807,1770061847283,-500.0,0.00015523,2]
[404326808,1770061847293,-500.0,0.00015523,2]
[404326809,1770061847307,-151.0,0.00015523,2]
[404326810,1770061847317,-500.0,0.00015523,2]
[404326811,1770061847327,-500.0,0.00015523,2]
[404326812,1770061847336,-500.0,0.00015523,2]
[404326813,1770061847346,-500.0,0.00015523,2]
[404326814,1770061847357,-500.0,0.00015523,2]
[404326815,1770061847367,-250.0,0.00015523,2]
[404326816,1770061847377,-250.0,0.00015523,2]
[404326817,1770061847386,-250.0,0.00015523,2]
[404326818,1770061847397,-250.0,0.00015523,2]
[404326819,1770061847408,-250.0,0.00015523,2]
[404326820,1770061847417,-322.6107,0.00015523,2]
[404326821,1770061847427,-250.0,0.00015523,2]
[404326822,1770061847437,-859.80605061,0.00015523,2]
[404326823,1770061847448,-1428.38747117,0.00015523,2]
[404326824,1770061847457,-209.40437684,0.00015523,2]
[404326825,1770061847468,-250.0,0.00015523,2]
[404326826,1770061847479,-250.0,0.00015523,2]